Cogmind - Beta 10.2 @@@ ROGUE MODE // 2020.12.22 @ 18:29:25 Player: Cracklepappy Result: Destroyed by P-80 Master with Gamma Rifle Performance ------------- Evolutions (7) 3500 Regions Visited (29) 5800 Robots Destroyed (423) 2115 Value Destroyed (16978) 16978 Prototype IDs (92) 1840 Alien Tech Used (0) 0 Bonus (8270) 8270 TOTAL SCORE: 38503 Bonus ------- High Alert Combat Kills 1171 Follower Combat Kills 3124 Network Hubs Disabled 200 Aligned with FarCom 300 Met Data Miner 300 Met Imprinter 300 Destroyed Z-Imprinter 1000 Exposed GOLEM Chamber 500 Met Warlord at Base 500 MAIN.C Attacked Warlord 500 Warlord Defense Kill 2330 Scanned by Researcher 500 Friendly Fire -2455 Cogmind --------- Core Integrity 0/1300 Matter 300/300 Energy 80/100 System Corruption 14% Temperature Cool (0) Movement Core (50) Location -3/Testing Parts ------- > --- POWER (2) -------- (None) > --- PROPULSION (4) --- (None) > --- UTILITY (12) ----- Assembled Suspension Frame Zionite Metafield Generator Experimental Target Analyzer > --- WEAPON (3) ------- (None) > --- INVENTORY (4) ---- Advanced Reaction Control System Improved Hacking Suite GOLEM Unit Peak State ------------ > --- POWER ------------ Assembled Flux Generator > --- PROPULSION ------- Centrium Heavy Treads Flexi-carbon Leg Assembled Alloy Leg > --- UTILITY ---------- Assembled Nanovents Assembled Nanovents Large Storage Unit Large Storage Unit High-capacity Storage Unit Assembled Biocell Array Assembled Suspension Frame Experimental Target Analyzer Particle Accelerator Assembled Alloy Armor GOLEM Unit > --- WEAPON ----------- Assembled Focal Cannon Assembled Focal Cannon Assembled Focal Cannon > --- INVENTORY -------- Light Antimatter Reactor Particle Reactor Particle Reactor Biometal Medium Treads Armored Heavy Treads Myomer Leg Experimental Myomer Leg Cooled Antigrav System Advanced Coolant Injector Zionite Biocell Advanced Matter Compressor Zionite Metafield Generator Long-range Sensor Array Advanced Signal Interpreter Advanced Reaction Control System Advanced Thermal Shield GOLEM Unit High-powered Shotgun Coil Gun Gamma Bomb Array CR-A16's Behemoth Slayer Portable AFG [Rating: 174] Favorites ----------- Power Assembled Flux Generator Engine Light Angular Momentum Engine Power Core Light Fission Core Reactor Assembled Flux Generator Propulsion Light Treads Treads Light Treads Leg Assembled Alloy Leg Wheel Compact Wheel Hover Unit Cooled Antigrav System Flight Unit Improved Diametric Drive Utility High-capacity Storage Unit Device Long-range Sensor Array Storage High-capacity Storage Unit Processor Advanced Signal Interpreter Hackware System Mapper Protection Assembled Alloy Armor Weapon Assembled Focal Cannon Energy Gun Heavy EM Shotgun Energy Cannon Assembled Focal Cannon Ballistic Gun Enhanced Autogun Ballistic Cannon Heavy Flak Cannon Launcher Missile Launcher Special Weapon Plasma Cutter Impact Weapon Shock Maul Piercing Weapon CR-A16's Pointy Stick Special Melee Weapon Improved Datajack Build | -11 -10 -10 -10 -9 -8 -8 -7 -7 -7 -7 -6 -6 -6 -6 -6 -6 -5 -5 -5 -5 -5 -4 -4 -4 -4 -4 -4 -3 -3 ------- Run | Scr Mat Min Exi Min Mat Sto Fac Low Low Dat Pro Fac Low Low Zio Dee Pro Fac Upp Upp War Pro Fac Ext Cet Arc Hub Res Tes Slots Evolved 14 | . . . . . 4 . 2 . . . . 2 . . . . . 2 . . . . 2 . . . . 2 . Power 1 | . . . . . . . . . . . . 1 . . . . . . . . . . . . . . . . . Propulsion 2 | . . . . . 1 . . . . . . . . . . . . . . . . . . . . . . 1 . Utility 10 | . . . . . 3 . 2 . . . . . . . . . . 2 . . . . 2 . . . . 1 . Weapon 1 | . . . . . . . . . . . . 1 . . . . . . . . . . . . . . . . . Parts Attached 526 | 8 17 1 3 3 31 20 32 19 28 4 17 63 20 18 8 38 1 37 16 13 12 10 7 9 6 5 20 35 25 Power 22 | 1 1 . . . 1 3 1 1 1 . . 5 . 3 . 2 . . . . . . . . . . . . 3 Engine 15 | 1 1 . . . 1 3 1 1 1 . . 3 . 2 . 1 . . . . . . . . . . . . . Core 3 | . . . . . . . . . . . . 2 . 1 . . . . . . . . . . . . . . . Reactor 4 | . . . . . . . . . . . . . . . . 1 . . . . . . . . . . . . 3 Propulsion 79 | 2 5 . . . 9 5 8 1 2 . . 9 1 . . 5 . 7 . . 4 2 1 7 1 2 1 3 4 Treads 67 | 1 3 . . . 9 5 8 1 2 . . 7 1 . . 4 . 7 . . 2 2 . 6 1 2 1 3 2 Leg 5 | . . . . . . . . . . . . 1 . . . 1 . . . . . . 1 1 . . . . 1 Wheel 4 | 1 2 . . . . . . . . . . 1 . . . . . . . . . . . . . . . . . Hover 2 | . . . . . . . . . . . . . . . . . . . . . 1 . . . . . . . 1 Flight 1 | . . . . . . . . . . . . . . . . . . . . . 1 . . . . . . . . Utility 289 | 2 3 . 2 . 10 2 12 9 20 2 11 33 11 11 2 16 . 29 14 13 5 6 6 2 5 3 18 29 13 Device 166 | 1 . . 1 . . . 3 5 12 . 6 19 8 8 2 7 . 13 10 13 4 4 2 . 2 2 11 22 11 Storage 28 | 1 3 . 1 . 6 2 2 . . . . 1 . . . 4 . 4 . . . . 1 . . . . 2 1 Processor 10 | . . . . . 2 . 1 . . . . . . . . 1 . . . . . . 3 1 1 . . . 1 Hackware 2 | . . . . . . . 1 . . . . . . . . . . . . . . . . . 1 . . . . Protection 83 | . . . . . 2 . 5 4 8 2 5 13 3 3 . 4 . 12 4 . 1 2 . 1 1 1 7 5 . Artifact . | . . . . . . . . . . . . . . . . . . . . . . . . . . . . . . Weapon 136 | 3 8 1 1 3 11 10 11 8 5 2 6 16 8 4 6 15 1 1 2 . 3 2 . . . . 1 3 5 Energy Gun 18 | 3 . . . . . . . 3 . . . . 3 2 2 5 . . . . . . . . . . . . . Energy Cannon 2 | . . . . . . . . . . . . . . . . 1 . . . . . . . . . . . . 1 Ballistic Gun 54 | . 6 1 . 2 8 6 7 . 2 . 4 11 2 . 1 3 . . . . . . . . . . . . 1 Ballistic Cannon 1 | . . . . . . . . 1 . . . . . . . . . . . . . . . . . . . . . Launcher 26 | . . . 1 . 2 . 1 3 2 1 1 1 2 . . 2 1 . 2 . 2 1 . . . . 1 1 2 Special Weapon 1 | . . . . . . . . . . . . . . . . 1 . . . . . . . . . . . . . Impact Weapon 18 | . . . . . 1 3 1 1 1 1 1 4 1 2 1 1 . . . . . . . . . . . . . Slashing Weapon . | . . . . . . . . . . . . . . . . . . . . . . . . . . . . . . Piercing Weapon 7 | . . . . . . . . . . . . . . . 1 1 . 1 . . . 1 . . . . . 2 1 Special Melee Weapon 9 | . 2 . . 1 . 1 2 . . . . . . . 1 1 . . . . 1 . . . . . . . . Unidentified Prototypes 19 | . . . 1 . 2 2 . . 2 . . 1 . . 1 1 . 1 . . 3 . . . 2 . . 1 2 Parts Lost 95 | . 3 . . . 1 . 1 1 3 . 1 10 . . . 8 . 4 . 1 1 8 . . . . 9 5 39 Power 13 | . . . . . . . . . 1 . . 3 . . . 3 . 1 . . . . . . . . 1 . 4 Propulsion 24 | . 2 . . . . . 1 1 2 . . 4 . . . 2 . 2 . . . 1 . . . . 2 1 6 Utility 38 | . . . . . . . . . . . . 1 . . . 1 . 1 . 1 1 7 . . . . 2 3 21 Weapon 20 | . 1 . . . 1 . . . . . 1 2 . . . 2 . . . . . . . . . . 4 1 8 Highest Loss Streak 12 | . 1 . . . 1 . 1 1 3 . 1 3 . . . 6 . 3 . 1 1 3 . . . . 8 2 12 Average Slot Usage (%) 92 | . 96 100 99 100 99 99 99 100 99 100 99 95 99 100 100 90 85 83 81 81 82 82 89 87 84 83 83 78 73 Engine 5 | . 14 14 14 14 9 8 7 7 7 7 7 7 6 8 13 6 . . . . . . . . . . . . . Reactor 2 | . . . . . . . . . . . . . . . . 2 6 4 5 5 5 5 5 5 5 4 4 3 3 Treads 17 | . 22 28 28 28 27 27 23 23 22 23 23 16 16 20 20 19 20 16 11 11 11 9 . 3 10 10 9 4 3 Leg 1 | . . . . . . . . . . . . . . . . . . . . . . 2 14 9 . . . 8 7 Device 9 | . . . . . . . 6 13 13 14 10 8 12 12 13 6 6 8 16 10 13 19 19 10 10 9 10 12 20 Storage 25 | . 27 28 27 28 24 32 30 30 30 30 30 26 26 26 26 26 26 23 23 23 23 23 21 21 21 21 21 19 17 Processor 6 | . . . . . 11 9 7 7 7 7 7 6 6 6 6 4 6 5 5 5 5 1 6 13 10 10 10 8 3 Protection 2 | . . . . . 8 3 . 1 1 . 4 4 . . . 2 . 3 . 5 3 1 5 6 8 5 4 2 1 Energy Gun 2 | . 3 . . . . . . 3 . . . . 6 16 13 6 . . . . . . . . . . . . . Energy Cannon 6 | . . . . . . . . . . . . . . . . 7 19 16 16 17 13 16 15 14 15 15 14 11 10 Ballistic Gun 5 | . 23 28 27 27 17 15 13 5 . . 13 17 9 . . 3 . . . . . . . . . . . . . Impact Weapon 1 | . . . . . . 2 . 1 4 . . 2 4 3 4 . . . . . . . . . . . . . . Naked Turns . | . . . . . . . . . . . . . . . . . . . . . . . . . . . . . . Heaviest Build 206 | 12 39 39 42 42 99 110 136 142 144 140 141 151 148 150 145 199 183 203 203 206 206 194 192 181 181 179 179 189 176 Greatest Support 108 | 10 40 40 40 40 60 60 60 62 64 62 62 70 70 70 70 78 78 100 100 100 100 100 90 93 103 108 108 80 90 Greatest Overweight (x) 57 | 1 1 . 1 1 1 1 3 2 2 2 2 9 8 2 48 3 2 6 2 2 2 6 2 2 1 57 2 6 5 Average Overweight (x) 1 | . . . . . . 1 1 2 2 2 2 3 3 2 2 1 2 2 1 2 1 1 2 1 1 21 1 2 . Largest Inventory Capacity 36 | 6 16 16 16 16 26 32 34 34 34 34 34 34 34 34 34 34 28 36 28 28 28 28 28 26 26 26 26 26 24 Average Capacity 28 | 5 13 16 15 16 19 29 33 34 34 34 34 34 34 34 34 31 28 28 28 28 28 28 27 26 26 26 26 24 21 Most Carried 34 | 6 16 16 16 16 24 32 34 34 34 34 34 34 34 34 34 34 28 28 28 28 28 28 28 26 26 26 26 26 24 Average Carried 28 | 4 12 15 15 16 19 29 32 33 33 34 33 33 33 34 33 30 27 27 27 26 27 27 27 25 25 26 25 23 18 Final Capacity 34 | 6 16 16 16 16 26 32 34 34 34 34 34 34 34 34 34 28 28 28 28 28 28 28 26 26 26 26 26 24 4 Final Carried 34 | 6 16 16 16 16 24 32 34 34 34 34 33 34 34 34 34 28 28 28 28 27 28 28 26 26 26 26 24 24 4 Class Distribution -------------------- 29% | Hauler-Mutant 26% | Hauler-Golem 15% | Hauler-Assassin 11% | Hauler-Skirmisher 9% | Mutant 3% | Hauler-Tank Dominant Class ---------------- Mutant | -10/Materials Mutant | -10/Mines Mutant | -10/Exiles Mutant | -9/Mines Hauler-Mutant | -8/Materials Hauler-Mutant | -8/Storage Hauler-Mutant | -7/Factory Hauler-Mutant | -7/Lower Caves Hauler-Assassin | -7/Lower Caves Hauler-Skirmisher | -7/Data Miner Hauler-Mutant | -6/Proximity Caves Hauler-Skirmisher | -6/Factory Hauler-Mutant | -6/Lower Caves Hauler-Assassin | -6/Lower Caves Hauler-Assassin | -6/Zion Hauler-Mutant | -6/Deep Caves Hauler-Golem | -5/Proximity Caves Hauler-Mutant | -5/Factory Hauler-Golem | -5/Upper Caves Hauler-Skirmisher | -5/Upper Caves Hauler-Mutant | -5/Warlord Hauler-Golem | -4/Proximity Caves Hauler-Mutant | -4/Factory Hauler-Golem | -4/Extension Commander-Tank | -4/Cetus Hauler-Golem | -4/Archives Hauler-Golem | -4/Hub_04(d) Hauler-Golem | -3/Research Hauler-Golem | -3/Testing Resources | -11 -10 -10 -10 -9 -8 -8 -7 -7 -7 -7 -6 -6 -6 -6 -6 -6 -5 -5 -5 -5 -5 -4 -4 -4 -4 -4 -4 -3 -3 ----------- Run | Scr Mat Min Exi Min Mat Sto Fac Low Low Dat Pro Fac Low Low Zio Dee Pro Fac Upp Upp War Pro Fac Ext Cet Arc Hub Res Tes Matter Collected 10229 | 280 720 8 20 64 785 453 645 282 442 . 281 1769 425 253 60 494 131 384 296 130 437 64 358 80 70 30 205 394 669 Remotely . | . . . . . . . . . . . . . . . . . . . . . . . . . . . . . . Salvage Created 20723 | 200 1912 30 . 40 1225 577 786 464 894 . 129 2012 404 590 . 634 358 2172 480 649 971 286 513 919 75 265 1075 1497 1566 Parts 1013 | 6 134 1 . 1 86 30 58 17 24 . 10 103 7 15 . 6 19 114 22 31 40 11 31 22 . 9 56 90 70 Haulers Intercepted 15 | . 2 . . . 5 4 . . 1 . . 2 . . . . . . . . . . . . . . 1 . . Recyclers Shooed 22 | . 6 . . . 1 2 1 . . . . 7 . . . . . 2 . . . . . 2 . . . . 1 Parts Field Recycled . | . . . . . . . . . . . . . . . . . . . . . . . . . . . . . . Retrieved Matter . | . . . . . . . . . . . . . . . . . . . . . . . . . . . . . . Parts Self-Destructed 164 | . . . . . . . . 10 1 . 16 . 7 5 1 . 17 . 15 23 62 7 . . . . . . . Prevented 37 | . . . . . . . . 5 10 . . . 2 9 . . . . . . 11 . . . . . . . . Kills | -11 -10 -10 -10 -9 -8 -8 -7 -7 -7 -7 -6 -6 -6 -6 -6 -6 -5 -5 -5 -5 -5 -4 -4 -4 -4 -4 -4 -3 -3 ------- Run | Scr Mat Min Exi Min Mat Sto Fac Low Low Dat Pro Fac Low Low Zio Dee Pro Fac Upp Upp War Pro Fac Ext Cet Arc Hub Res Tes Combat Hostiles Destroyed 304 | . 17 . . 1 24 4 15 11 14 . 5 22 7 6 . 7 9 33 10 14 20 7 9 7 1 3 14 21 23 Melee 7 | . . . . . . 1 . . . . . . . . . 4 . 1 . . . 1 . . . . . . . Guns 88 | . 17 . . 1 21 3 12 2 . . 4 21 2 5 . . . . . . . . . . . . . . . Cannons 130 | . . . . . . . . . . . . . . . . . 5 31 3 14 3 2 9 7 1 3 13 18 21 AOE 69 | . . . . . 3 . 3 9 11 . 1 1 5 . . . 4 1 7 . 16 4 . . . . . 2 2 Classes Destroyed 24 | 2 8 . . . 1 . 1 4 2 . 1 . . . . 2 1 . . . 1 . . . . . . . 1 Worker 29 | . 13 1 . . 2 . 1 . . . . 7 . . . . . 1 . . . . . . . . 2 1 1 Builder 16 | . 8 . . . 1 . 1 . . . . 2 . . . . . 1 . . . . . . . . . 1 2 Tunneler 10 | 4 2 . . . 2 . . . . . . 1 . . . . . . . . . . . . . . . 1 . Hauler 15 | . 2 . . . 5 4 . . 1 . . 2 . . . . . . . . . . . . . . 1 . . Recycler 23 | 1 7 . . . 3 1 . . . . . 4 . . . . . 3 . . . . . 3 . . . . 1 Minesweeper 1 | . . . . . . . . . . . 1 . . . . . . . . . . . . . . . . . . Mechanic 1 | . 1 . . . . . . . . . . . . . . . . . . . . . . . . . . . . Operator 8 | . 2 . . . . 1 . . . . . . . . . . . 2 . . . . . 1 . . 2 . . Watcher 14 | . 3 . . . 2 . 2 . . . . 1 . . . . . 1 . . . . 3 2 . . . . . Swarmer 85 | . 3 . . . 12 . 3 8 3 . 4 7 3 . . . 5 10 . 5 3 5 4 . . . . . 10 Grunt 89 | . 14 . . 1 3 4 3 1 5 . 1 6 3 5 . . 3 8 8 1 9 . 2 3 . . 1 5 3 Brawler 5 | . . . . . . . . . . . . 2 1 . . . . 1 . . . . . . . . . 1 . Duelist 2 | . . . . . . . . 1 . . . . . . . . . . . . . . . . . . . 1 . Researcher 1 | . . . . . . . . . . . . . . . . . . . . . . . . . . . . . 1 Sentry 28 | . . . . . 9 . 4 . . . . . . . . . . 2 1 1 1 1 . 3 . 3 2 1 . Specialist 3 | . . . . . . . . . . . . . . . . . . . . . 2 . . . . . . . 1 Hunter 27 | . . . . . . . . 1 . . . 4 . 1 . . . 4 . 2 4 . . . . . 4 2 5 Programmer 43 | . . . . . . . 5 . . . . 3 . . . . . 8 1 1 2 . 3 . . . 6 10 4 Behemoth 4 | . . . . . . . . . . . . . . . . . 1 . . . . 1 . 1 . . . 1 . Cetus Guard 1 | . . . . . . . . . . . . . . . . . . . . . . . . . 1 . . . . Enhanced Grunt 1 | . . . . . . . . . . . . 1 . . . . . . . . . . . . . . . . . Lightning 1 | . . . . . . . . . . . . . . . . . . . . . . . . . . . 1 . . Z-Light 2 | . . . . . . . . . . . . . . . . 2 . . . . . . . . . . . . . Decomposer 1 | . . . . . . . . . 1 . . . . . . . . . . . . . . . . . . . . Packrat 3 | . . . . . . . . . . . . . 3 . . . . . . . . . . . . . . . . Samaritan 6 | . . . . . . . . 4 1 . . . . . . . . . . . . 1 . . . . . . . Tinkerer 2 | . . . . . . . . 2 . . . . . . . . . . . . . . . . . . . . . Golem 5 | . . . . . . . . . . . . . . . . 5 . . . . . . . . . . . . . Thug 8 | . . . . . . . . . 3 . . . . . . . . . . 4 1 . . . . . . . . Savage 2 | . . . . . . . . . 2 . . . . . . . . . . . . . . . . . . . . Butcher 1 | . . . . . . . . . . . . . . . . . . . . . 1 . . . . . . . . Mutant 1 | . . . . . . . . . 1 . . . . . . . . . . . . . . . . . . . . Best Kill Streak 11 | 3 6 1 . 1 6 3 3 4 6 . 4 7 3 2 . 2 5 7 4 4 11 4 4 2 1 3 3 7 9 Combat Bots Only 11 | . 3 . . 1 5 2 3 4 5 . 4 4 3 2 . 2 5 6 4 4 11 4 4 2 1 3 2 7 6 Max Kills in Single Turn 3 | 1 2 1 . 1 3 1 3 2 2 . 1 2 2 1 . 1 2 3 3 1 3 3 1 2 1 1 2 2 3 Gunslinging 1 | . . . . . 1 . . . . . . . . . . . . . . . . . . . . . . . . Exploded 3 | . . . . . 2 . 3 2 2 . 1 1 2 . . . 2 1 3 . 3 3 . . . . . 1 1 Melee 1 | . . . . . . 1 . . . . . . . . . 1 . 1 . . . 1 . . . . . . . Uniques/NPCs Destroyed 2 | . . . . . . 1 . . . . . . . . . 1 . . . . . . . . . . . . . 01-MTF (-8/Storage) Z-Imprinter (-6/Deep Caves) Combat | -11 -10 -10 -10 -9 -8 -8 -7 -7 -7 -7 -6 -6 -6 -6 -6 -6 -5 -5 -5 -5 -5 -4 -4 -4 -4 -4 -4 -3 -3 -------- Run | Scr Mat Min Exi Min Mat Sto Fac Low Low Dat Pro Fac Low Low Zio Dee Pro Fac Upp Upp War Pro Fac Ext Cet Arc Hub Res Tes Damage Taken 29715 | 32 604 15 . 33 1021 229 1366 476 915 . 180 2267 180 317 . 1626 741 2336 . 898 920 1383 258 406 160 152 3115 2743 7342 Core 3244 | . 128 . . 13 87 . 195 38 132 . . 197 18 21 . 162 103 226 . 44 56 108 30 24 60 . 283 162 1157 Absorbed by Shields 153 | . . . . . . . . . . . . . . . . . . . . . . . . 96 50 . . . 7 Reduced by Siege Mode 90 | . . . . . . . . . . . . . . . . . . . . . . . . . . . 36 47 7 Core Remaining (%) 62 | 100 . . . 43 . 84 . . . . 47 . . . . . 41 . . . . 56 . . . . 65 . . Volleys Fired 1133 | 15 211 . 1 3 74 39 58 17 16 . 11 93 14 18 . 38 44 114 12 36 27 20 38 40 4 5 47 65 73 Largest 3 | 2 2 . 1 2 2 2 2 2 2 . 2 3 3 3 . 3 3 3 3 3 3 3 3 3 3 3 3 3 3 Hottest 175 | 80 80 . 33 40 50 50 50 100 72 . 61 84 150 150 . 175 80 75 80 75 90 80 75 75 75 75 75 80 130 Shots Fired 2282 | 30 420 . 1 6 144 76 114 26 23 . 22 247 29 50 . 73 68 201 18 77 37 45 80 98 12 15 112 122 136 Gun 1159 | 30 420 . . 6 142 76 113 18 . . 21 246 22 50 . 14 . . . . . . . . . . . . 1 Cannon 1011 | . . . . . . . . . . . . . . . . 34 65 201 12 77 17 43 80 98 12 15 112 119 126 Launcher 109 | . . . 1 . 2 . 1 8 23 . 1 1 7 . . 22 3 . 6 . 20 2 . . . . . 3 9 Special 3 | . . . . . . . . . . . . . . . . 3 . . . . . . . . . . . . . Kinetic 985 | . 370 . . 6 142 76 113 . . . 21 246 10 . . . . . . . . . . . . . . . 1 Thermal 1008 | . . . . . . . . . . . . . . . . 34 65 201 12 77 17 43 80 98 12 15 112 119 123 Explosive 53 | . . . 1 . 2 . 1 8 4 . 1 1 7 . . . 3 . 6 . 14 2 . . . . . 3 . Electromagnetic 236 | 30 50 . . . . . . 18 19 . . . 12 50 . 39 . . . . 6 . . . . . . . 12 Robot Hit Streak 42 | 11 15 . . 1 18 15 24 26 9 . 2 14 8 9 . 5 17 34 13 29 6 20 24 18 9 7 17 30 42 Robot Miss Streak 7 | 5 5 . . 1 4 2 3 2 1 . 2 7 3 2 . 4 1 2 . 3 2 2 2 3 1 2 3 2 4 Penetration Max . | . . . . . . . . . . . . . . . . . . . . . . . . . . . . . . Secondary Targets 6 | . 2 . . . 2 . . . . . 1 . . 1 . . . . . . . . . . . . . . . Max Gunslinging Chain 1 | . 1 . . . 1 . . . . . 1 . . 1 . . . . . . . . . . . . . . . Capacitor 3 | . . . . . . . . . . . . . . . . . . . . . . . . . . . . . 3 Shots Hit Robots 1505 | 16 226 . . 3 112 62 85 30 18 . 10 185 20 44 5 51 28 107 5 43 28 38 38 64 9 10 73 102 93 Core Hits 833 | 6 103 1 . 2 61 13 35 22 26 . 12 153 15 25 . 34 11 48 14 17 54 13 16 21 5 6 28 42 50 Critical Hits 5 | . 1 . . . 1 1 . . . . . . . . . 2 . . . . . . . . . . . . . Critical Kills 1 | . . . . . . 1 . . . . . . . . . . . . . . . . . . . . . . . Critical Parts Destroyed 2 | . 1 . . . 1 . . . . . . . . . . . . . . . . . . . . . . . . Melee Attacks 206 | . . . . 1 3 8 10 13 11 . 6 15 4 13 48 36 . 9 . . 9 5 . . . . . 11 4 Impact 125 | . . . . . 3 7 10 13 11 . 6 15 4 13 43 . . . . . . . . . . . . . . Slashing . | . . . . . . . . . . . . . . . . . . . . . . . . . . . . . . Piercing 64 | . . . . . . . . . . . . . . . . 35 . 9 . . . 5 . . . . . 11 4 Sneak Attacks 35 | . . . . 1 . 3 . 8 2 . . 3 3 . 5 1 . . . . 9 . . . . . . . . Combat Hostiles . | . . . . . . . . . . . . . . . . . . . . . . . . . . . . . . Follow-up Attacks . | . . . . . . . . . . . . . . . . . . . . . . . . . . . . . . Damage Inflicted 57457 | 248 2071 49 . 42 2351 1138 1775 2284 1835 . 286 3893 1271 950 . 1552 1804 5595 1002 2000 5639 1907 1675 3298 511 512 3590 5242 4937 Guns 10849 | 221 1840 . . 14 2029 964 1519 266 . . 144 3011 166 616 . 59 . . . . . . . . . . . . . Cannons 29299 | . . . . . . . . . . . . . . . . 46 1355 5146 261 2000 732 1308 1675 3114 511 512 3398 4807 4434 Explosions 12916 | 27 183 . . . 262 . 158 1024 1649 . 132 443 768 75 . 439 449 170 741 . 4907 439 . 184 . . 176 268 422 Melee 3971 | . . . . . . 161 29 994 186 . . 427 337 259 . 984 . 196 . . . 160 . . . . . 167 71 Ramming 398 | . 48 49 . 28 60 13 69 . . . 10 12 . . . . . 83 . . . . . . . . 16 . 10 Kinetic 9265 | . 1538 . . 14 2029 964 1519 . . . 144 3011 46 . . . . . . . . . . . . . . . . Thermal 30605 | 27 . . . . . . . 214 323 . . 296 74 75 . 215 1355 5242 261 2000 732 1308 1675 3298 511 512 3398 4807 4282 Explosive 8678 | . 62 . . . 262 . 158 810 252 . 132 147 694 . . . 449 74 741 . 4190 439 . . . . . 268 . Electromagnetic 4540 | 221 423 . . . . . . 266 1074 . . . 120 616 . 353 . . . . 717 . . . . . 176 . 574 Impact 2393 | . . . . . . 161 29 994 186 . . 427 337 259 . . . . . . . . . . . . . . . Slashing . | . . . . . . . . . . . . . . . . . . . . . . . . . . . . . . Piercing 1578 | . . . . . . . . . . . . . . . . 984 . 196 . . . 160 . . . . . 167 71 Highest Corruption 15 | . . . . . . 3 2 2 1 . . 7 7 . . . . 6 6 1 1 1 . 1 1 1 15 4 14 Average Corruption 2 | . . . . . . 1 1 1 1 . . 6 4 . . . . 4 2 1 1 1 . 1 1 1 3 2 5 Corruption Purged 22 | . . . . . . . . 2 1 . . . 7 . . . . 1 6 1 . . . . . 1 . 2 1 Effects 217 | . . . . . . 17 7 12 . . . 37 31 . . . . 29 4 1 . 10 . . 1 1 4 18 45 Message Errors 55 | . . . . . . 4 1 2 . . . 9 5 . . . . 7 1 1 . 4 . . . . 1 11 9 Matter Fused 38 | . . . . . . 4 . . . . . 8 11 . . . . 6 . . . . . . . . 2 1 6 Heat Flow Errors 17 | . . . . . . . 2 1 . . . 4 2 . . . . 2 1 . . . . . . . . 2 3 Energy Discharges 26 | . . . . . . 2 1 4 . . . . 6 . . . . 4 1 . . 3 . . . . . 2 3 Parts Rejected 4 | . . . . . . . . . . . . 1 . . . . . 2 . . . . . . . . . . 1 Data Loss (minor) 39 | . . . . . . 4 2 5 . . . 4 6 . . . . 4 1 . . 3 . . 1 1 . 2 6 Misfires 5 | . . . . . . . . . . . . 2 1 . . . . . . . . . . . . . . . 2 Misdirections 5 | . . . . . . . . . . . . . . . . . . . . . . . . . . . . . 5 Targeting Errors 23 | . . . . . . 2 1 . . . . 8 . . . . . 4 . . . . . . . . 1 . 7 Weapon Failures 5 | . . . . . . 1 . . . . . 1 . . . . . . . . . . . . . . . . 3 Overload Shots . | . . . . . . . . . . . . . . . . . . . . . . . . . . . . . . Overflow Damage 3900 | 5 . . . . . 43 . 800 226 . 32 154 177 208 . 26 59 332 26 113 333 109 117 133 60 21 90 518 318 Projectiles 1852 | . . . . . . . . . . . . . . . . . 59 327 17 113 20 86 117 126 60 21 70 518 318 Explosions 743 | 5 . . . . . . . 101 107 . 32 62 18 20 . 26 . . 9 . 313 23 . 7 . . 20 . . Melee 1305 | . . . . . . 43 . 699 119 . . 92 159 188 . . . 5 . . . . . . . . . . . Knockbacks 9 | . . . . 1 . 1 1 1 1 . . 2 1 1 . . . . . . . . . . . . . . . Impact 9 | . . . . 1 . 1 1 1 1 . . 2 1 1 . . . . . . . . . . . . . . . Kinetic . | . . . . . . . . . . . . . . . . . . . . . . . . . . . . . . Secondary . | . . . . . . . . . . . . . . . . . . . . . . . . . . . . . . Self-Inflicted Damage 724 | 32 . . . . 38 . 28 60 134 . . 74 55 . . 12 . . . . 136 . 24 . . . 95 . 36 Shots 27 | 1 . . . . 1 . 1 2 6 . . 1 1 . . 1 . . . . 5 . 1 . . . 1 . 6 Rammed 49 | . 13 6 . 7 7 . 5 . . . . 1 . . . . . 4 . . . . . . . . 4 . 2 Targets Rammed 57 | . 15 6 . 7 10 1 6 . . . 1 1 . . . . . 4 . . . . . . . . 4 . 2 Kicked . | . . . . . . . . . . . . . . . . . . . . . . . . . . . . . . Crushed 8 | . 2 . . . 3 1 1 . . . 1 . . . . . . . . . . . . . . . . . . Highest Temperature 378 | 72 177 . . . 38 6 240 227 45 . 50 358 326 193 . 378 44 239 211 77 181 4 2 11 . 1 1 228 252 Average Temperature 65 | 28 55 . . . 9 4 40 73 16 . 18 93 106 96 . 134 15 45 43 26 54 4 2 4 . 1 1 57 104 Received Heat Transfer 3382 | . 270 . . . 252 63 312 45 234 . 27 240 . 117 . 369 183 189 . 126 96 117 21 108 25 27 132 213 216 Effects 5 | . . . . . . . . . . . . 3 . . . 2 . . . . . . . . . . . . . Interference 5 | . . . . . . . . . . . . 3 . . . 2 . . . . . . . . . . . . . Siege Activations 5 | . . . . . . . . . . . . . . . . . . . . . . . . . . . 3 1 1 Total Turns 125 | . . . . . . . . . . . . . . . . . . . . . . . . . . . 49 55 21 Longest Duration 55 | . . . . . . . . . . . . . . . . . . . . . . . . . . . 22 55 21 Robots Corrupted 9 | . . . . . . . . . 3 . . . . 1 . 3 . . . . 1 . . . . . 1 . . Combat Hostiles 8 | . . . . . . . . . 3 . . . . 1 . 3 . . . . 1 . . . . . . . . Parts Fried 38 | 4 . . . . . 2 . 6 9 . . 1 . 4 . 7 . . . . 1 . . . . . . . 4 Impact Corruptions 62 | . . . . . . 2 . 26 12 . . 4 8 9 . . . 1 . . . . . . . . . . . Robots Melted 1 | . . . . . . . . . . . . . . . . . . . . . . . . . . . 1 . . Combat Hostiles 1 | . . . . . . . . . . . . . . . . . . . . . . . . . . . 1 . . Parts Melted 25 | . . . . . . . . . . . . . . . . . . 4 . 2 . 1 . 1 . . 3 8 6 Heat Transferred 16483 | 50 . . . . . . . 200 350 . . 200 50 50 . 148 650 2775 125 1075 325 700 900 1850 274 275 1836 2400 2250 Parts Sabotaged . | . . . . . . . . . . . . . . . . . . . . . . . . . . . . . . Parts Stolen . | . . . . . . . . . . . . . . . . . . . . . . . . . . . . . . Parts Stripped . | . . . . . . . . . . . . . . . . . . . . . . . . . . . . . . Power Chain Reactions 12 | 1 . . . . . . . 2 4 . . . 1 1 . 3 . . . . . . . . . . . . . Missiles Intercepted . | . . . . . . . . . . . . . . . . . . . . . . . . . . . . . . Alert | -11 -10 -10 -10 -9 -8 -8 -7 -7 -7 -7 -6 -6 -6 -6 -6 -6 -5 -5 -5 -5 -5 -4 -4 -4 -4 -4 -4 -3 -3 ------- Run | Scr Mat Min Exi Min Mat Sto Fac Low Low Dat Pro Fac Low Low Zio Dee Pro Fac Upp Upp War Pro Fac Ext Cet Arc Hub Res Tes Peak Influence 1128 | 25 454 197 . 134 320 412 290 . . . . 834 . . . . . 743 . . . . 279 1128 907 512 520 518 860 Initial 596 | . 16 165 . . . 59 50 . . . . 4 . . . . . . . . . . 56 111 596 358 . 255 291 Average 209 | 10 277 69 . 61 102 158 114 . . . . 390 . . . . . 319 . . . . 138 272 780 114 98 231 508 Maximum Alert Level 4 | . 2 . . . 1 2 1 . . . . 3 . . . . . 3 . . . . 1 4 3 2 2 2 3 Low Security (%) 60 | 100 25 100 . 100 84 60 88 . . . . 32 . . . . . 18 . . . . 75 57 . 77 89 55 . Level 1 24 | . 49 . . . 15 36 11 . . . . 16 . . . . . 54 . . . . 24 25 . 12 1 35 43 Level 2 10 | . 25 . . . . 2 . . . . . 33 . . . . . 19 . . . . . 3 32 10 8 8 27 Level 3 4 | . . . . . . . . . . . . 16 . . . . . 6 . . . . . 11 67 . . . 28 Level 4 . | . . . . . . . . . . . . . . . . . . . . . . . . 2 . . . . . Level 5 . | . . . . . . . . . . . . . . . . . . . . . . . . . . . . . . High Security . | . . . . . . . . . . . . . . . . . . . . . . . . . . . . . . Max Security . | . . . . . . . . . . . . . . . . . . . . . . . . . . . . . . Squads Dispatched 68 | . 5 1 . . 1 6 7 . . . . 10 . . . . . 10 . . . . 2 2 . . 9 7 8 Investigation 12 | . 3 1 . . . 1 2 . . . . 3 . . . . . 1 . . . . . . . . . . 1 Extermination 21 | . . . . . . . 3 . . . . 2 . . . . . 5 . . . . 2 . . . 3 4 2 Reinforcement 24 | . 2 . . . 1 3 2 . . . . 3 . . . . . 4 . . . . . 1 . . 2 1 5 Assault 4 | . . . . . . . . . . . . 2 . . . . . . . . . . . 1 . . 1 . . Garrison 7 | . . . . . . 2 . . . . . . . . . . . . . . . . . . . . 3 2 . Intercept . | . . . . . . . . . . . . . . . . . . . . . . . . . . . . . . Construction Impeded 7 | . . . . . . . . . . . . 2 . . . . . 1 . . . . . . . . . 1 3 Haulers Reinforced 2 | . . . . . . . 1 . . . . . . . . . . 1 . . . . . . . . . . . Stealth | -11 -10 -10 -10 -9 -8 -8 -7 -7 -7 -7 -6 -6 -6 -6 -6 -6 -5 -5 -5 -5 -5 -4 -4 -4 -4 -4 -4 -3 -3 --------- Run | Scr Mat Min Exi Min Mat Sto Fac Low Low Dat Pro Fac Low Low Zio Dee Pro Fac Upp Upp War Pro Fac Ext Cet Arc Hub Res Tes Distress Signals 28 | . 2 . . . 1 5 3 . . . . 1 . . . . . 3 . . . . 2 5 1 . 3 1 1 Communications Jammed . | . . . . . . . . . . . . . . . . . . . . . . . . . . . . . . Distress Signals . | . . . . . . . . . . . . . . . . . . . . . . . . . . . . . . Times Spotted 529 | . 43 4 . 7 38 35 29 12 14 . 7 41 3 12 . 9 7 44 2 15 30 7 14 37 11 5 25 26 52 Peak Tracking Total 14 | . 5 3 9 4 6 5 3 4 5 . 4 5 4 4 . 7 4 7 1 4 12 4 4 4 6 1 11 4 14 Tactical Retreats 40 | . 4 . . . 3 4 1 . . . . 6 1 3 . 1 . 2 . . 2 . 2 . . . 2 4 5 Traps | -11 -10 -10 -10 -9 -8 -8 -7 -7 -7 -7 -6 -6 -6 -6 -6 -6 -5 -5 -5 -5 -5 -4 -4 -4 -4 -4 -4 -3 -3 ------- Run | Scr Mat Min Exi Min Mat Sto Fac Low Low Dat Pro Fac Low Low Zio Dee Pro Fac Upp Upp War Pro Fac Ext Cet Arc Hub Res Tes Traps Triggered 14 | . 2 . . . . 2 4 . . . . 4 . . . . . . . . . . . 1 . . . . 1 Indirectly . | . . . . . . . . . . . . . . . . . . . . . . . . . . . . . . Trap Hack Attempts 50 | . 28 . . . . . 22 . . . . . . . . . . . . . . . . . . . . . . Triggered . | . . . . . . . . . . . . . . . . . . . . . . . . . . . . . . Disarmed . | . . . . . . . . . . . . . . . . . . . . . . . . . . . . . . Reprogrammed 5 | . 3 . . . . . 2 . . . . . . . . . . . . . . . . . . . . . . Reused . | . . . . . . . . . . . . . . . . . . . . . . . . . . . . . . Traps Extracted . | . . . . . . . . . . . . . . . . . . . . . . . . . . . . . . Installed . | . . . . . . . . . . . . . . . . . . . . . . . . . . . . . . Triggered 13 | . . . . . . . . . . . 1 . 2 1 . . . . . . 9 . . . . . . . . Machines | -11 -10 -10 -10 -9 -8 -8 -7 -7 -7 -7 -6 -6 -6 -6 -6 -6 -5 -5 -5 -5 -5 -4 -4 -4 -4 -4 -4 -3 -3 ---------- Run | Scr Mat Min Exi Min Mat Sto Fac Low Low Dat Pro Fac Low Low Zio Dee Pro Fac Upp Upp War Pro Fac Ext Cet Arc Hub Res Tes Machines Disabled 57 | . 11 . 1 . 3 1 . . . . . 5 . . . 3 . 5 . . . . 3 6 3 2 12 1 1 Max in Single Turn 8 | . 5 . 1 . 2 1 . . . . . 4 . . . 1 . 3 . . . . 2 4 . 1 8 1 1 Garrison Access 3 | . . . . . . . 1 . . . . . . . . . . . . . . . . . . . . 2 . Network Hub 1 | . . . . . . . . . . . . . . . . . . . . . . . . . . . 1 . . Energy Cycler 3 | . . . . . . . . . . . . . . . . . . . . . . . . 3 . . . . . Machines Sabotaged . | . . . . . . . . . . . . . . . . . . . . . . . . . . . . . . Garrisons Compromised . | . . . . . . . . . . . . . . . . . . . . . . . . . . . . . . Overloaded Fab Kills . | . . . . . . . . . . . . . . . . . . . . . . . . . . . . . . Fab Network Shutdowns 2 | . . . . . . . . . . . . 1 . . . . . . . . . . . . . . . . 1 Hacking | -11 -10 -10 -10 -9 -8 -8 -7 -7 -7 -7 -6 -6 -6 -6 -6 -6 -5 -5 -5 -5 -5 -4 -4 -4 -4 -4 -4 -3 -3 --------- Run | Scr Mat Min Exi Min Mat Sto Fac Low Low Dat Pro Fac Low Low Zio Dee Pro Fac Upp Upp War Pro Fac Ext Cet Arc Hub Res Tes Machines Accessed 87 | . 7 2 2 1 14 6 12 1 . 4 . 7 2 1 . . . 4 1 . . . 7 1 1 . 2 7 5 Terminals 44 | . 5 . . 1 11 3 3 . . . . 3 . . . . . 3 . . . . 5 1 1 . 2 3 3 Fabricators 7 | . . . . . . . 4 . . . . 1 . . . . . . . . . . 1 . . . . . 1 Repair Stations 8 | . . . . . . 2 2 . . . . 2 . . . . . . . . . . . . . . . 1 1 Recycling Units 3 | . 2 . . . . . . . . . . 1 . . . . . . . . . . . . . . . . . Scanalyzers 6 | . . . . . 2 . 2 . . . . . . . . . . . . . . . 1 . . . . 1 . Garrison Access 6 | . . . . . 1 1 1 . . . . . . . . . . 1 . . . . . . . . . 2 . Total Hacks 242 | . 17 2 2 1 46 15 35 1 . 25 . 20 3 1 . . . 9 1 . . . 11 2 2 . 9 20 20 Successful 147 | . 12 2 2 . 27 8 24 1 . 25 . 10 3 1 . . . 3 1 . . . 6 . 1 . 6 12 3 Failed 94 | . 5 . . 1 19 7 10 . . . . 10 . . . . . 6 . . . . 5 2 1 . 3 8 17 Catastrophic 17 | . 1 . . 1 4 2 . . . . . . . . . . . 2 . . . . 2 . . . . . 5 Database Lockouts 1 | . . . . . . . 1 . . . . . . . . . . . . . . . . . . . . . . Manual 67 | . 9 . 1 1 18 3 7 . . . . 5 . . 1 . . 2 . . 1 . . 2 2 . 9 6 . Terminals 134 | . 15 . . 1 37 7 13 . . . . 13 . . . . . 5 . . . . 8 2 2 . 9 12 10 Fabricators 20 | . . . . . . . 9 . . . . 2 . . . . . . . . . . 2 . . . . . 7 Repair Stations 21 | . . . . . . 7 4 . . . . 4 . . . . . . . . . . . . . . . 3 3 Recycling Units 3 | . 2 . . . . . . . . . . 1 . . . . . . . . . . . . . . . . . Scanalyzers 17 | . . . . . 7 . 6 . . . . . . . . . . . . . . . 1 . . . . 3 . Garrison Access 12 | . . . . . 2 1 3 . . . . . . . . . . 4 . . . . . . . . . 2 . Terminal Hacks 85 | . 6 2 2 . 14 4 8 1 . 25 . 3 3 1 . . . 3 1 . . . 4 . 1 . 2 4 1 Record 15 | . 1 . 1 . . . . . . 11 . . 2 . . . . . . . . . . . . . . . . Part Schematic 13 | . 1 . . . . . 2 . . 6 . 1 . . . . . . . . . . 1 . . . . 2 . Robot Schematic 5 | . . . . . . . . . . 5 . . . . . . . . . . . . . . . . . . . Robot Analysis 1 | . 1 . . . . . . . . . . . . . . . . . . . . . . . . . . . . Prototype ID Bank 10 | . . . . . 2 . 2 . . 3 . . . . . . . . . . . . 1 . . . . 1 1 Open Door 8 | . . 2 . . . . . 1 . . . . 1 1 . . . . 1 . . . 1 . 1 . . . . Branch Access Points 4 | . . . . . . . 1 . . . . 1 . . . . . 1 . . . . . . . . . 1 . Alert Level 7 | . . . . . 3 1 2 . . . . . . . . . . . . . . . . . . . 1 . . Unreport Threat 7 | . . . . . 3 2 1 . . . . . . . . . . . . . . . . . . . 1 . . Locate Traps 5 | . 1 . . . 1 . . . . . . 1 . . . . . 1 . . . . 1 . . . . . . Security Status 1 | . 1 . . . . . . . . . . . . . . . . . . . . . . . . . . . . Transport Status 1 | . . . . . 1 . . . . . . . . . . . . . . . . . . . . . . . . Recall Investigation 1 | . . . . . . . . . . . . . . . . . . 1 . . . . . . . . . . . Hauler Manifests 3 | . 1 . . . 1 1 . . . . . . . . . . . . . . . . . . . . . . . Registered Components 1 | . . . . . 1 . . . . . . . . . . . . . . . . . . . . . . . . Zone Layout 2 | . . . . . 2 . . . . . . . . . . . . . . . . . . . . . . . . EX-Prototype ID Bank 1 | . . . 1 . . . . . . . . . . . . . . . . . . . . . . . . . . Fabricator Hacks 10 | . . . . . . . 5 . . . . 2 . . . . . . . . . . 2 . . . . . 1 Load Schematic 5 | . . . . . . . 3 . . . . 1 . . . . . . . . . . 1 . . . . . . Build 5 | . . . . . . . 2 . . . . 1 . . . . . . . . . . 1 . . . . . 1 Repair Station Hacks 15 | . . . . . . 4 4 . . . . 4 . . . . . . . . . . . . . . . 2 1 Scan Component 8 | . . . . . . 2 2 . . . . 2 . . . . . . . . . . . . . . . 1 1 Repair 7 | . . . . . . 2 2 . . . . 2 . . . . . . . . . . . . . . . 1 . Recycling Unit Hacks 1 | . . . . . . . . . . . . 1 . . . . . . . . . . . . . . . . . Retrieve Components 1 | . . . . . . . . . . . . 1 . . . . . . . . . . . . . . . . . Scanalyzer 13 | . . . . . 6 . 6 . . . . . . . . . . . . . . . . . . . . 1 . Insert Component 7 | . . . . . 3 . 3 . . . . . . . . . . . . . . . . . . . . 1 . Analyze 6 | . . . . . 3 . 3 . . . . . . . . . . . . . . . . . . . . . . Garrison Access Hacks 2 | . . . . . . . . . . . . . . . . . . . . . . . . . . . . 2 . Seal Access 2 | . . . . . . . . . . . . . . . . . . . . . . . . . . . . 2 . Unauthorized Hacks 21 | . 6 . . . 7 . 1 . . . . . . . . . . . . . . . . . . . 4 3 . Terminals 18 | . 4 . . . 7 . . . . . . . . . . . . . . . . . . . . . 4 3 . Track 10 | . 2 . . . 4 . . . . . . . . . . . . . . . . . . . . . 2 2 . Botnet 6 | . 1 . . . 2 . . . . . . . . . . . . . . . . . . . . . 2 1 . Operators 2 | . 1 . . . 1 . . . . . . . . . . . . . . . . . . . . . . . . Fabricators . | . . . . . . . . . . . . . . . . . . . . . . . . . . . . . . Repair Stations . | . . . . . . . . . . . . . . . . . . . . . . . . . . . . . . Recycling Units 2 | . 2 . . . . . . . . . . . . . . . . . . . . . . . . . . . . Tunnel 2 | . 2 . . . . . . . . . . . . . . . . . . . . . . . . . . . . Scanalyzers . | . . . . . . . . . . . . . . . . . . . . . . . . . . . . . . Garrison Access 1 | . . . . . . . 1 . . . . . . . . . . . . . . . . . . . . . . Jam 1 | . . . . . . . 1 . . . . . . . . . . . . . . . . . . . . . . Data Cores Recovered 1 | . . . . . . . . . . . . . . . . . . 1 . . . . . . . . . . . Used . | . . . . . . . . . . . . . . . . . . . . . . . . . . . . . . Hacking Detections 65 | . 4 . . 1 14 6 10 . . . . 5 . . . . . 4 . . . . 7 1 2 . 1 5 5 Full Trace Events 5 | . . . . . 1 . . . . . . 2 . . . . . 1 . . . . . . . . . . 1 Feedback Events . | . . . . . . . . . . . . . . . . . . . . . . . . . . . . . . Feedback Blocked . | . . . . . . . . . . . . . . . . . . . . . . . . . . . . . . Robot Schematics Acquired 5 | . . . . . . . . . . 5 . . . . . . . . . . . . . . . . . . . Robots Built . | . . . . . . . . . . . . . . . . . . . . . . . . . . . . . . Matter . | . . . . . . . . . . . . . . . . . . . . . . . . . . . . . . Time . | . . . . . . . . . . . . . . . . . . . . . . . . . . . . . . Total Robot Build Rating . | . . . . . . . . . . . . . . . . . . . . . . . . . . . . . . Part Schematics Acquired 19 | . 1 . . . 3 . 5 . . 6 . 1 . . . . . . . . . . 1 . . . . 2 . Parts Built 5 | . . . . . . . 3 . . . . 1 . . . . . . . . . . 1 . . . . . . Matter 1034 | . . . . . . . 270 . . . . 318 . . . . . . . . . . 168 . . . . . 278 Time 485 | . . . . . . . 93 . . . . 169 . . . . . . . . . . 84 . . . . . 139 Total Part Build Rating 19 | . . . . . . . 9 . . . . 6 . . . . . . . . . . 4 . . . . . . Parts Repaired 7 | . . . . . . 2 2 . . . . 2 . . . . . . . . . . . . . . . 1 . Time 358 | . . . . . . 104 120 . . . . 98 . . . . . . . . . . . . . . . 36 . Parts Recycled . | . . . . . . . . . . . . . . . . . . . . . . . . . . . . . . Recycled Matter . | . . . . . . . . . . . . . . . . . . . . . . . . . . . . . . Retrieved Matter . | . . . . . . . . . . . . . . . . . . . . . . . . . . . . . . Retrieved Components 9 | . . . . . . . . . . . . 9 . . . . . . . . . . . . . . . . . Parts Scanalyzed 7 | . . . . . 3 . 3 . . . . . . . . . . . . . . . . . . . . 1 . Part Schematics Acquired 6 | . . . . . 3 . 3 . . . . . . . . . . . . . . . . . . . . . . Parts Damaged 1 | . . . . . 1 . . . . . . . . . . . . . . . . . . . . . . . . Bothacking | -11 -10 -10 -10 -9 -8 -8 -7 -7 -7 -7 -6 -6 -6 -6 -6 -6 -5 -5 -5 -5 -5 -4 -4 -4 -4 -4 -4 -3 -3 ------------ Run | Scr Mat Min Exi Min Mat Sto Fac Low Low Dat Pro Fac Low Low Zio Dee Pro Fac Upp Upp War Pro Fac Ext Cet Arc Hub Res Tes Used RIF Installer . | . . . . . . . . . . . . . . . . . . . . . . . . . . . . . . Robots Hacked 8 | . . . . 1 . 1 . . . . . . . . 5 1 . . . . . . . . . . . . . Non-combat 1 | . . . . . . . . . . . . . . . 1 . . . . . . . . . . . . . . Combat 7 | . . . . 1 . 1 . . . . . . . . 4 1 . . . . . . . . . . . . . Robot Hacks Applied 8 | . . . . 1 . 1 . . . . . . . . 5 1 . . . . . . . . . . . . . parse_system 8 | . . . . 1 . 1 . . . . . . . . 5 1 . . . . . . . . . . . . . Relay Couplers Released . | . . . . . . . . . . . . . . . . . . . . . . . . . . . . . . Robots Rewired 27 | . . . . . . . . . . . . . . . . . . . . . 4 . . 23 . . . . . Allies Hacked 1 | . . . . . . . . . . . . . . . . . . . . . . . . . 1 . . . . Hacks Repelled . | . . . . . . . . . . . . . . . . . . . . . . . . . . . . . . Allies | -11 -10 -10 -10 -9 -8 -8 -7 -7 -7 -7 -6 -6 -6 -6 -6 -6 -5 -5 -5 -5 -5 -4 -4 -4 -4 -4 -4 -3 -3 -------- Run | Scr Mat Min Exi Min Mat Sto Fac Low Low Dat Pro Fac Low Low Zio Dee Pro Fac Upp Upp War Pro Fac Ext Cet Arc Hub Res Tes Total Allies 49 | . . 6 . . . 6 . . . . 1 . . . . 1 . . . . 4 . . 31 . . . . . Largest Group 15 | . . 5 5 3 2 3 . . . . 1 1 . . . 1 . . . . 4 . . 15 14 5 3 . . Highest-Rated Group 665 | . . 102 102 40 32 115 . . . . 94 94 . . . 118 . . . . 177 . . 665 665 323 124 . . Highest-Rated Ally 156 | . . 31 31 16 16 99 . . . . 94 94 . . . 118 . . . . 49 . . 156 156 150 49 . . Total Orders 1 | . . . . . . . . . . . . . . . . . . 1 . . . . . . . . . . . RETURN 1 | . . . . . . . . . . . . . . . . . . 1 . . . . . . . . . . . Ally Attacks 467 | . . 8 . 33 3 64 . . . . 14 10 . . . 36 . . . . 32 . . 174 77 11 5 . . Total Damage 14828 | . . 145 . 451 49 1910 . . . . 360 136 . . . 2714 . . . . 981 . . 5642 2060 273 107 . . Kills 103 | . . 4 . 8 . 25 . . . . 2 1 . . . 9 . . . . 8 . . 34 10 1 1 . . Allies Corrupted 1 | . . . . . . . . . . . . . . . . . . . . . . . . . 1 . . . . Allies Melted . | . . . . . . . . . . . . . . . . . . . . . . . . . . . . . . Intel | -11 -10 -10 -10 -9 -8 -8 -7 -7 -7 -7 -6 -6 -6 -6 -6 -6 -5 -5 -5 -5 -5 -4 -4 -4 -4 -4 -4 -3 -3 ------- Run | Scr Mat Min Exi Min Mat Sto Fac Low Low Dat Pro Fac Low Low Zio Dee Pro Fac Upp Upp War Pro Fac Ext Cet Arc Hub Res Tes Robot Analysis Total 1 | . 1 . . . . . . . . . . . . . . . . . . . . . . . . . . . . Derelict Logs Recovered 20 | . . 1 . 2 . . . 3 3 . . . 2 1 3 . 1 . 2 2 . . . . . . . . . Drone Launches 1 | . . . . . . . . . . . . . . . . . . 1 . . . . . . . . . . . Drone Recoveries 1 | . . . . . . . . . . . . . . . . . . 1 . . . . . . . . . . . Exploration | -11 -10 -10 -10 -9 -8 -8 -7 -7 -7 -7 -6 -6 -6 -6 -6 -6 -5 -5 -5 -5 -5 -4 -4 -4 -4 -4 -4 -3 -3 ------------- Run | Scr Mat Min Exi Min Mat Sto Fac Low Low Dat Pro Fac Low Low Zio Dee Pro Fac Upp Upp War Pro Fac Ext Cet Arc Hub Res Tes Turns Passed 66079 | 160 2392 1175 870 993 2325 1787 3450 4456 3691 171 899 2165 3542 3162 3039 5924 1248 3014 3640 3228 880 1991 1136 2140 227 3562 1550 1945 1317 Spaces Moved 23642 | 113 1141 681 532 572 1045 837 1508 1236 1408 84 419 751 1061 1234 1386 2119 401 1156 1275 648 408 352 463 595 111 260 598 562 686 Core 231 | 5 . . . . . . . . . . . . . . 6 . . . . . . . . . . 93 . . 127 Treads 21273 | . 838 681 532 572 1045 837 1508 1236 1408 84 419 543 710 1234 1380 2119 401 1156 1275 648 408 323 . 279 111 167 598 402 359 Legs 1001 | . . . . . . . . . . . . . . . . . . . . . . 29 463 316 . . . 160 33 Wheels 970 | 108 303 . . . . . . . . . . 208 351 . . . . . . . . . . . . . . . . Hover 167 | . . . . . . . . . . . . . . . . . . . . . . . . . . . . . 167 Flight . | . . . . . . . . . . . . . . . . . . . . . . . . . . . . . . Fastest Speed 25 | 50 90 160 160 160 160 180 180 195 190 198 198 180 180 200 200 180 200 180 180 200 180 180 186 180 180 180 180 180 25 Average Speed 195 | 86 145 160 161 160 167 180 191 198 195 198 198 196 193 200 209 191 200 200 180 200 185 198 186 183 180 1152 180 197 122 Slowest Speed 2900 | 90 180 160 180 180 180 180 220 200 198 198 198 290 200 200 2450 220 200 280 200 200 200 270 190 190 180 2900 200 265 250 Overloaded Moves 62 | . . . . . . . . . . . . . . . . . . . . . . . . . . . . . 62 Propulsion Burnouts . | . . . . . . . . . . . . . . . . . . . . . . . . . . . . . . Robots Hopped . | . . . . . . . . . . . . . . . . . . . . . . . . . . . . . . Cave-ins Triggered . | . . . . . . . . . . . . . . . . . . . . . . . . . . . . . . Exploration Rate (%) 67 | 5 100 99 71 99 89 96 41 94 95 72 57 23 90 91 88 79 55 26 91 60 67 52 12 80 60 97 36 13 77 Regions Visited 29 Branch Regions 22 Pre-discovered Areas 10 | . 2 . 1 2 . . . . 2 1 . . . . 1 . . . . 1 . . . . . . . . . Known Exits Taken 18 | . . . . . 1 . 1 1 1 1 1 1 1 1 1 . 1 1 . . . 1 1 . 1 1 1 1 . Unknown Exits Taken 11 | 1 1 1 1 1 . 1 . . . . . . . . . 1 . . 1 1 1 . . 1 . . . . . Scrap Searched 32 | . . 1 . 1 . . . 10 4 . 1 . 2 1 3 . 3 . 3 . . 3 . . . . . . . Spaces Dug 221 | . . . . . 2 1 9 12 12 . 5 9 1 10 2 24 24 48 1 5 . 4 38 4 . . 4 4 2 Terrain Destroyed 1217 | 2 8 . 6 . 18 1 13 62 48 . 8 50 106 16 2 55 71 108 106 32 127 35 54 35 . 2 186 37 29 Melee 50 | . . . . . 2 1 9 3 8 . 5 9 1 10 2 . . . . . . . . . . . . . . Projectile 336 | . . . . . . . . . . . . . . . . 31 39 79 2 32 4 15 32 24 . 2 28 19 29 AOE 831 | 2 8 . 6 . 16 . 4 59 40 . 3 41 105 6 . 24 32 29 104 . 123 20 22 11 . . 158 18 . Terrain Rammed . | . . . . . . . . . . . . . . . . . . . . . . . . . . . . . . Walls Destroyed . | . . . . . . . . . . . . . . . . . . . . . . . . . . . . . . Machines Disabled . | . . . . . . . . . . . . . . . . . . . . . . . . . . . . . . Actions | -11 -10 -10 -10 -9 -8 -8 -7 -7 -7 -7 -6 -6 -6 -6 -6 -6 -5 -5 -5 -5 -5 -4 -4 -4 -4 -4 -4 -3 -3 --------- Run | Scr Mat Min Exi Min Mat Sto Fac Low Low Dat Pro Fac Low Low Zio Dee Pro Fac Upp Upp War Pro Fac Ext Cet Arc Hub Res Tes Total 41324 | 143 1525 766 545 633 1503 1064 1977 3190 2293 87 457 1265 2516 1864 1452 3870 790 1678 2607 2520 488 1602 673 1574 129 814 972 1273 1054 Wait 14844 | . 75 66 1 48 281 127 305 1895 814 . 4 305 1409 579 1 1539 340 297 1276 1815 12 1195 149 717 3 539 296 556 200 Move 23613 | 112 1140 680 531 571 1044 836 1507 1235 1407 83 418 750 1060 1233 1385 2118 400 1155 1274 647 407 351 462 594 110 259 597 561 686 Hop . | . . . . . . . . . . . . . . . . . . . . . . . . . . . . . . Pick Up 275 | 7 23 6 7 . 25 15 17 6 8 . . 22 4 . 3 39 . 21 9 2 8 5 7 3 1 . 4 15 18 Fast Attach 103 | 7 1 . 1 . 8 7 4 . 4 . . 15 1 3 4 8 . 9 1 . 5 1 2 4 3 1 . 10 4 Attach 117 | . 4 . 1 . 4 . 5 1 3 . 1 12 1 . 1 14 . 21 9 8 4 1 3 . . . 2 6 16 Detach 40 | . . . . . 1 1 1 . . . . 1 . . . 5 1 6 4 6 1 5 . . . . . 4 4 Swap 306 | 1 12 1 1 3 19 13 23 18 21 4 16 36 18 15 3 16 1 7 6 5 3 8 2 5 3 4 18 19 5 Drop 367 | 1 16 7 2 . 34 17 17 5 9 . . 15 5 3 7 57 4 35 16 1 10 11 10 21 5 6 4 26 23 Fire 1133 | 15 211 . 1 3 74 39 58 17 16 . 11 93 14 18 . 38 44 114 12 36 27 20 38 40 4 5 47 65 73 Melee 206 | . . . . 1 3 8 10 13 11 . 6 15 4 13 48 36 . 9 . . 9 5 . . . . . 11 4 Ram 1 | . . . . . . . . . . . . . . . . . . . . . . . . . . . . . 1 Kick . | . . . . . . . . . . . . . . . . . . . . . . . . . . . . . . Crush 56 | . 15 6 . 7 10 1 6 . . . 1 1 . . . . . 4 . . . . . . . . 4 . 1 Escape Stasis 23 | . . . . . . . 2 . . . . . . . . . . . . . . . . 2 . . . . 19 Rewire 190 | . . . . . . . . . . . . . . . . . . . . . 2 . . 188 . . . . . Trap 50 | . 28 . . . . . 22 . . . . . . . . . . . . . . . . . . . . . . Miscellaneous . | . . . . . . . . . . . . . . . . . . . . . . . . . . . . . . Route ------- -11/Scrapyard -10/Materials (discovered 4 exits: [*Mat x3] / *Min) -10/Mines (discovered 3 exits: [*Mat x2] / *Exi) -10/Exiles (discovered 2 exits: *Min x2) -9/Mines (discovered 2 exits: *Mat x2) -8/Materials (discovered 3 exits: *Fac x2 / *Sto) -8/Storage -7/Factory (discovered 2 exits: *Low x2) -7/Lower Caves -7/Lower Caves (discovered 2 exits: *Fac / *Dat) -7/Data Miner -6/Proximity Caves -6/Factory (discovered 3 exits: Fac / *Low x2) -6/Lower Caves -6/Lower Caves (discovered 2 exits: *Fac / *Zio) -6/Zion (discovered 2 exits: *Dee / [*Pro]) -6/Deep Caves -5/Proximity Caves -5/Factory (discovered 3 exits: *Fac / *Upp x2) -5/Upper Caves (discovered 2 exits: [*Upp] / *War) -5/Upper Caves -5/Warlord -4/Proximity Caves -4/Factory (discovered 3 exits: Upp x2 / *Ext) -4/Extension (discovered 3 exits: *Res x2 / *Cet) -4/Cetus -4/Archives (discovered 3 exits: *Res / *Hub x2) -4/Hub_04(d) (discovered 2 exits: *Res x2) -3/Research (discovered 2 exits: *Tes x2) -3/Testing History --------- Turn | Location | Event 10 | -11/Scrapyard | Discovered new exit (range 15) 161 | -11/Scrapyard | Entered Materials 193 | -10/Materials | Discovered new exit (range 6) 311 | -10/Materials | Discovered new exit (range 11) 315 | -10/Materials | Build established: Mutant 909 | -10/Materials | Discovered new exit (range 16) 1239 | -10/Materials | Core integrity fell below 50% 1300 | -10/Materials | Discovered new exit (range 16) 2553 | -10/Materials | Entered Mines 2630 | -10/Mines | Received a Rocket Launcher from a helpful Derelict 2691 | -10/Mines | A weapon hastily lodged in a ceiling crevice suddenly fell to the ground 2706 | -10/Mines | Escorted by a lone wolf Derelict 2790 | -10/Mines | Discovered new exit (range 11) 2802 | -10/Mines | Met a Derelict shopkeep closing up shop 3022 | -10/Mines | Discovered new exit (range 5) 3109 | -10/Mines | Deemed a non-threat by the Exiles lab entrance 3109 | -10/Mines | Discovered new exit (range 5) 3278 | -10/Mines | Found the Drone Emporium 3286 | -10/Mines | Found Prototype Device 3370 | -10/Mines | Assisted by bots powering up and referring to "LRC-V3" 3728 | -10/Mines | Entered Exiles 3728 | -10/Exiles | Accompanied by 5 allies 3751 | -10/Exiles | Discovered new exit (range 15) 3758 | -10/Exiles | Led the pair of lost Derelicts to a safe place 3770 | -10/Exiles | Met 8R-AWN 3796 | -10/Exiles | Met EX-HEX 3874 | -10/Exiles | Met EX-DEC 3908 | -10/Exiles | Learned location of Zion (-6) 3980 | -10/Exiles | Discovered new exit (range 15) 4252 | -10/Exiles | Identified Sensor Drone Bay 4302 | -10/Exiles | Met EX-BIN 4322 | -10/Exiles | Aligned with FarCom system 4324 | -10/Exiles | Given EX-Vault access code 4361 | -10/Exiles | Opened EX-Vault 4398 | -10/Exiles | Warned to stay clear of 0b10 Research branches 4569 | -10/Exiles | Attacked by the Exiles 4598 | -10/Exiles | Entered Mines 4598 | -9/Mines | Accompanied by 3 allies 4628 | -9/Mines | Met a Derelict bent on vengeance 4837 | -9/Mines | Discovered new exit (range 11) 4843 | -9/Mines | Learned location of Storage (-8) 4845 | -9/Mines | Learned Materials trap positions 4935 | -9/Mines | Discovered new exit (range 5) 5591 | -9/Mines | Entered Materials 5591 | -8/Materials | Accompanied by 2 allies 5591 | -8/Materials | Evolved 4 slots: Propulsion x1, Utility x3 5592 | -8/Materials | Identified exit to Storage 5593 | -8/Materials | Loaded intel: 16 trap records 6366 | -8/Materials | Discovered new exit (range 13) 6600 | -8/Materials | Build established: Hauler-Mutant 7056 | -8/Materials | Discovered new exit (range 16) 7916 | -8/Materials | Entered Storage 7978 | -8/Storage | Repaired Imp. Deuterium Engine 8002 | -8/Storage | Repaired Enh. Autogun 8067 | -8/Storage | Met 01-MTF 8893 | -8/Storage | Discovered new exit (range 4) 9329 | -8/Storage | Garrison activated, responded to threat 9523 | -8/Storage | Garrison activated, responded to threat 9687 | -8/Storage | Destroyed 01-MTF 9703 | -8/Storage | Entered Factory 9703 | -7/Factory | Evolved 2 slots: Utility x2 10483 | -7/Factory | Fabricated Hcp. Storage Unit (x1) 11173 | -7/Factory | Repaired Enh. Autogun 12137 | -7/Factory | Fabricated System Backup Module (x2) 12188 | -7/Factory | Identified exit to Lower Caves 12697 | -7/Factory | Central database locked down 12853 | -7/Factory | Repaired Enh. Autogun 13153 | -7/Factory | Entered Lower Caves 14961 | -7/Lower Caves | Learned 4 Factory zone layouts 15436 | -7/Lower Caves | Learned location of 2 exits from Factory 15461 | -7/Lower Caves | Build established: Hauler-Assassin 16714 | -7/Lower Caves | Build established: Hauler-Skirmisher 16909 | -7/Lower Caves | Discovered new exit (range 7) 16931 | -7/Lower Caves | Learned Factory terminal intel 17158 | -7/Lower Caves | Build established: Hauler-Mutant 17485 | -7/Lower Caves | Build established: Hauler-Skirmisher 17607 | -7/Lower Caves | Identified exit to Lower Caves 17609 | -7/Lower Caves | Entered another Lower Caves area 18035 | -7/Lower Caves | Build established: Hauler-Assassin 18269 | -7/Lower Caves | Learned 8 Factory zone layouts 19017 | -7/Lower Caves | Discovered new exit (range 14) 19044 | -7/Lower Caves | Identified exit to Data Miner 20207 | -7/Lower Caves | Attacked by a faux Warlord 20232 | -7/Lower Caves | Core integrity fell below 50% 20257 | -7/Lower Caves | Lost 3 parts (1p2n) 20499 | -7/Lower Caves | Discovered new exit (range 9) 20634 | -7/Lower Caves | Build established: Hauler-Skirmisher 20658 | -7/Lower Caves | Identified exit to Factory 21300 | -7/Lower Caves | Entered Data Miner 21300 | -7/Data Miner | Discovered new exit (range 6) 21338 | -7/Data Miner | Met Data Miner 21372 | -7/Data Miner | Learned location of Section 7 (-2) 21372 | -7/Data Miner | Acquired the access code to Warlord's prototype stash 21407 | -7/Data Miner | Received God Mode back door access code from Data Miner 21463 | -7/Data Miner | Identified exit to Proximity Caves 21471 | -7/Data Miner | Entered Proximity Caves 21508 | -6/Proximity Caves | Escorted by Enhanced Grunt 22218 | -6/Proximity Caves | Attracted the attention of an 0b10 checkpoint 22319 | -6/Proximity Caves | Discovered exit to Factory (range 14) 22336 | -6/Proximity Caves | Build established: Hauler-Mutant 22370 | -6/Proximity Caves | Entered Factory 22370 | -6/Factory | Accompanied by 1 ally 22370 | -6/Factory | Evolved 2 slots: Power x1, Weapon x1 22371 | -6/Factory | Identified exit to Lower Caves 22371 | -6/Factory | Identified exit to Factory 22373 | -6/Factory | Loaded intel: 18 terminal locations 22520 | -6/Factory | Repaired Adv. Sensor Array 22616 | -6/Factory | Found Prototype Device 22617 | -6/Factory | Identified Exp. Thermal Shield 23076 | -6/Factory | Local fabrication network quarantined 23151 | -6/Factory | Fabricated Mni. Smartbomb Launcher (x1) 23262 | -6/Factory | Repaired Adv. EMP Blaster 23352 | -6/Factory | Lost 3 parts (1p2w) 23655 | -6/Factory | Build established: Hauler-Skirmisher 23770 | -6/Factory | First assault squad dispatched 23790 | -6/Factory | Incoming assault squad redirected 24196 | -6/Factory | Incoming assault squad redirected 24248 | -6/Factory | Build established: Hauler-Tank 24535 | -6/Factory | Entered Lower Caves 24653 | -6/Lower Caves | Build established: Hauler-Mutant 26149 | -6/Lower Caves | Build established: Hauler-Assassin 26731 | -6/Lower Caves | Learned Factory stockpile data 27229 | -6/Lower Caves | Build established: Hauler-Skirmisher 27591 | -6/Lower Caves | Learned Extension stockpile data 27677 | -6/Lower Caves | Discovered new exit (range 13) 27687 | -6/Lower Caves | Learned location of 1 exit from Factory 28075 | -6/Lower Caves | Identified exit to Lower Caves 28077 | -6/Lower Caves | Entered another Lower Caves area 28080 | -6/Lower Caves | Discovered exit to Factory (range 13) 28175 | -6/Lower Caves | Build established: Hauler-Assassin 29340 | -6/Lower Caves | Encountered a Warlord checkpoint 29593 | -6/Lower Caves | Build established: Hauler-Skirmisher 30736 | -6/Lower Caves | Discovered new exit (range 12) 31034 | -6/Lower Caves | Build established: Hauler-Assassin 31237 | -6/Lower Caves | Identified exit to Zion 31239 | -6/Lower Caves | Entered Zion 31317 | -6/Zion | Discovered new exit (range 15) 31557 | -6/Zion | Learned Factory trap positions 31737 | -6/Zion | Given the Hacking Drone Bay 31827 | -6/Zion | Received a hallucinogenic algorithm 32017 | -6/Zion | Learned Factory machine intel 32629 | -6/Zion | Discovered new exit (range 22) 32668 | -6/Zion | Found Unknown Piercing Weapon 32673 | -6/Zion | Identified CR-A16's Pointy Stick 33529 | -6/Zion | Found Prototype Device 33529 | -6/Zion | Identified Hacking Drone Bay 34272 | -6/Zion | Saw the warning signs outside the Deep Caves entrance 34276 | -6/Zion | Identified exit to Deep Caves 34278 | -6/Zion | Entered Deep Caves 34280 | -6/Deep Caves | Met 5H-AD0 34589 | -6/Deep Caves | Found Surveybot 24 Scanner 34597 | -6/Deep Caves | Found Surveybot 24 Chip 34663 | -6/Deep Caves | Z-Facility disabled 34710 | -6/Deep Caves | Attacked by Z-Imprinter 34761 | -6/Deep Caves | Allies destroyed Z-Imprinter 34787 | -6/Deep Caves | Found Prototype Device 34790 | -6/Deep Caves | Lost 6 parts (1p2n1u2w) 34808 | -6/Deep Caves | Found Prototype Protection 34851 | -6/Deep Caves | Identified Zio. Metafield Generator 34908 | -6/Deep Caves | Identified Zio. Weapon Casing 35014 | -6/Deep Caves | Build established: Hauler-Gunner 35402 | -6/Deep Caves | Build established: Hauler-Mutant 36661 | -6/Deep Caves | Build established: Hauler-Tank 37139 | -6/Deep Caves | Discovered new exit (range 6) 37450 | -6/Deep Caves | Spotted as-22418 37481 | -6/Deep Caves | Destroyed as-22418 37803 | -6/Deep Caves | Build established: Hauler-Mutant 37818 | -6/Deep Caves | Exposed GOLEM chamber 37845 | -6/Deep Caves | Found GOLEM Unit 37852 | -6/Deep Caves | Found GOLEM Unit 38174 | -6/Deep Caves | Found GOLEM Unit 38207 | -6/Deep Caves | Found GOLEM Unit 38669 | -6/Deep Caves | Build established: Hauler-Golem 38931 | -6/Deep Caves | Found Zio. Weapon Casing 39476 | -6/Deep Caves | Found Prototype Protection 40202 | -6/Deep Caves | Entered Proximity Caves 40294 | -5/Proximity Caves | Learned Factory garrison access intel 40776 | -5/Proximity Caves | Spotted B-75 Beast 40793 | -5/Proximity Caves | Core integrity fell below 50% 40853 | -5/Proximity Caves | Destroyed B-75 Beast 41428 | -5/Proximity Caves | Discovered exit to Factory (range 5) 41450 | -5/Proximity Caves | Entered Factory 41450 | -5/Factory | Evolved 2 slots: Utility x2 41451 | -5/Factory | Identified exit to Factory 41452 | -5/Factory | Loaded intel: 117 trap records 41454 | -5/Factory | Loaded intel: 254 machine locations 41455 | -5/Factory | Loaded intel: 4 garrison access locations 41580 | -5/Factory | Identified Zio. Heavy Carapace 41907 | -5/Factory | Identified exit to Upper Caves 42681 | -5/Factory | Build established: Hauler-Gunner 43010 | -5/Factory | Build established: Hauler-Mutant 43984 | -5/Factory | Build established: Hauler-Golem 44267 | -5/Factory | Spotted B-75 Beast 44359 | -5/Factory | Lost 3 parts (1p1n1u) 44464 | -5/Factory | Entered Upper Caves 45150 | -5/Upper Caves | A Derelict revealed a hidden shortcut to "reach the base" 45706 | -5/Upper Caves | Build established: Hauler-Skirmisher 46347 | -5/Upper Caves | Build established: Hauler-Mutant 46726 | -5/Upper Caves | Discovered new exit (range 5) 46784 | -5/Upper Caves | Build established: Hauler-Golem 47078 | -5/Upper Caves | Learned Factory non-interactive machine intel 48104 | -5/Upper Caves | Entered another Upper Caves area 48117 | -5/Upper Caves | Ambushed by wild Derelicts 48462 | -5/Upper Caves | Build established: Hauler-Skirmisher 49149 | -5/Upper Caves | Learned location of 1 exit from Factory 49220 | -5/Upper Caves | Attracted the attention of an 0b10 checkpoint 49258 | -5/Upper Caves | Learned location of Armory (-4) 50430 | -5/Upper Caves | Build established: Hauler-Mutant 50673 | -5/Upper Caves | Discovered new exit (range 6) 51332 | -5/Upper Caves | Entered Warlord 51384 | -5/Warlord | Discovered new exit (range 12) 51740 | -5/Warlord | Met Warlord 51765 | -5/Warlord | Warlord's base attacked by MAIN.C 51808 | -5/Warlord | Opened Warlord's prototype stash 51815 | -5/Warlord | Found Prototype Reactor 51845 | -5/Warlord | Found Prototype Processor 51851 | -5/Warlord | Found Prototype Hackware 51881 | -5/Warlord | Identified Vortex Chain Reactor 51898 | -5/Warlord | Identified Exp. Target Analyzer 51960 | -5/Warlord | Identified System Mapper 52075 | -5/Warlord | Warlord forces counterattacked 52084 | -5/Warlord | P-80 Master assimilated allied Slayer 6b 52107 | -5/Warlord | Spotted Striker 52107 | -5/Warlord | Spotted Striker 52137 | -5/Warlord | Destroyed 11 combat bots 52171 | -5/Warlord | Spotted Striker 52212 | -5/Warlord | Entered Proximity Caves 52228 | -4/Proximity Caves | Spotted B-86 Titan 52510 | -4/Proximity Caves | Build established: Hauler-Golem 52750 | -4/Proximity Caves | Lost 3 parts (3u) 52796 | -4/Proximity Caves | Destroyed B-86 Titan 52824 | -4/Proximity Caves | Lost 3 parts (3u) 53673 | -4/Proximity Caves | Attracted the attention of an 0b10 checkpoint 54191 | -4/Proximity Caves | Discovered exit to Factory (range 5) 54203 | -4/Proximity Caves | Entered Factory 54203 | -4/Factory | Evolved 2 slots: Utility x2 54204 | -4/Factory | Identified exit to Upper Caves 54204 | -4/Factory | Identified exit to Extension 54206 | -4/Factory | Loaded intel: 194 non-interactive machine locations 55102 | -4/Factory | Build established: Hauler-Mutant 55109 | -4/Factory | Fabricated Lrn. Sensor Array (x1) 55339 | -4/Factory | Entered Extension 55742 | -4/Extension | Build established: Hauler-Golem 56123 | -4/Extension | Rescued a captive Derelict 56311 | -4/Extension | Rescued a captive Derelict 56382 | -4/Extension | Found Quantum Capacitor 56454 | -4/Extension | Rescued a captive Derelict 56454 | -4/Extension | Rescued a captive Derelict 56525 | -4/Extension | Rescued a captive Derelict 56621 | -4/Extension | Rescued a captive Derelict 56642 | -4/Extension | Rescued a captive Derelict 56726 | -4/Extension | Spotted B-86 Titan 56745 | -4/Extension | Allies destroyed B-86 Titan 56748 | -4/Extension | Discovered new exit (range 23) 56758 | -4/Extension | Spotted B-86 Titan 56771 | -4/Extension | Destroyed B-86 Titan 56885 | -4/Extension | Rescued A7 56915 | -4/Extension | Energy Cycler disabled 56915 | -4/Extension | Rescued a captive Derelict 56925 | -4/Extension | Rescued a captive Derelict 57109 | -4/Extension | Build established: Hauler-Tank 57339 | -4/Extension | First assault squad dispatched 57354 | -4/Extension | Incoming assault squad redirected 57423 | -4/Extension | Discovered new exit (range 20) 57430 | -4/Extension | Discovered new exit (range 21) 57479 | -4/Extension | Entered Cetus 57479 | -4/Cetus | Accompanied by 14 allies (A7) 57484 | -4/Cetus | Acquired a Cetus Manufacturing Module code from A7 57525 | -4/Cetus | Build established: Commander-Tank 57525 | -4/Cetus | Spotted Cetus Guard 57527 | -4/Cetus | Spotted Cetus Guard 57528 | -4/Cetus | Spotted Cetus Guard 57529 | -4/Cetus | Spotted Cetus Guard 57541 | -4/Cetus | Allies destroyed Cetus Guard 57542 | -4/Cetus | Allies destroyed Cetus Guard 57546 | -4/Cetus | Destroyed Cetus Guard 57547 | -4/Cetus | Allies destroyed Cetus Guard 57553 | -4/Cetus | Cetus Manufacturing Module disabled 57625 | -4/Cetus | Failed to start Cetus Manufacturing Module 57643 | -4/Cetus | P-70 Sage assimilated allied I7-1BZ(h) 57674 | -4/Cetus | Discovered new exit (range 16) 57700 | -4/Cetus | Identified exit to Archives 57706 | -4/Cetus | Entered Archives 57706 | -4/Archives | Accompanied by 5 allies (A7) 57762 | -4/Archives | Unable to access archive contents 57769 | -4/Archives | Discovered new exit (range 15) 57793 | -4/Archives | Discovered new exit (range 15) 57814 | -4/Archives | Discovered new exit (range 16) 58150 | -4/Archives | Build established: Hauler-Golem 61262 | -4/Archives | Identified exit to Hub_04(d) 61268 | -4/Archives | Entered Hub_04(d) 61268 | -4/Hub_04(d) | Accompanied by 3 allies 61275 | -4/Hub_04(d) | Discovered new exit (range 19) 61630 | -4/Hub_04(d) | Discovered new exit (range 18) 61883 | -4/Hub_04(d) | Identified exit to Research 62533 | -4/Hub_04(d) | Garrison activated, responded to threat 62680 | -4/Hub_04(d) | Network Hub disabled 62728 | -4/Hub_04(d) | Spotted Lightning 62729 | -4/Hub_04(d) | Spotted Lightning 62730 | -4/Hub_04(d) | Spotted Lightning 62733 | -4/Hub_04(d) | Spotted Lightning 62734 | -4/Hub_04(d) | Spotted Lightning 62754 | -4/Hub_04(d) | Destroyed Lightning 62768 | -4/Hub_04(d) | First assault squad dispatched 62780 | -4/Hub_04(d) | Found Prototype Energy Cannon 62783 | -4/Hub_04(d) | Incoming assault squad redirected 62785 | -4/Hub_04(d) | Found Prototype Device 62793 | -4/Hub_04(d) | System corruption reached 10% 62818 | -4/Hub_04(d) | Entered Research 62818 | -3/Research | Evolved 2 slots: Propulsion x1, Utility x1 62831 | -3/Research | Lost 8 parts (1p2n1u4w) 62878 | -3/Research | Identified exit to Testing 63147 | -3/Research | Identified EM Dispersion Field 63378 | -3/Research | Spotted B-86 Titan 63410 | -3/Research | Revealed the true nature of CR-A16's Pointy Stick 63417 | -3/Research | Destroyed B-86 Titan 63435 | -3/Research | Found Hvy. Reflective Plating 63979 | -3/Research | Found Gamma Bomb Array 64010 | -3/Research | Repaired EM Dispersion Field 64513 | -3/Research | Garrison activated, responded to threat 64653 | -3/Research | Destroyed 7 combat bots 64763 | -3/Research | Entered Testing 64953 | -3/Testing | Scanned by Researcher 64976 | -3/Testing | Lost 5 parts (5u) 65063 | -3/Testing | Identified EMDS 65122 | -3/Testing | Lost 11 parts (1p3n4u3w) 65347 | -3/Testing | Found Portable AFG 65582 | -3/Testing | Local fabrication network quarantined 65674 | -3/Testing | Spotted Striker 65874 | -3/Testing | Spotted Alpha 7 65883 | -3/Testing | Spotted RZ-ZUQ(L) 65883 | -3/Testing | Spotted R0-YZT(L) 65916 | -3/Testing | Core integrity fell below 50% 65967 | -3/Testing | System corruption reached 10% 65973 | -3/Testing | Lost 12 parts (1p2n6u3w) 66011 | -3/Testing | Core integrity fell below 20% 66040 | -3/Testing | Lost 3 parts (2p1n) 66080 | -3/Testing | Destroyed by P-80 Master with Gamma Rifle Last Messages --------------- 66044_ Field strength at 58. 66045_ Field strength at 52. 66046_ Field strength at 46. 66047_ Field strength at 40. 66048_ Field strength at 34. 66049_ Field strength at 28. 66050_ Field strength at 22. 66051_ System corrupted: Heat flow error (+134). 66051_ Field strength at 16. 66052_ Field strength at 10. 66053_ Field strength at 4. 66054_ Stasis field depleted. 66054_ GOLEM Unit destroyed. 66056_ Penetrated by Slug. 66057_ Slug penetrates Wall. 66057_ Asb. Biocell Array destroyed. 66058_ Railgun destroyed. 66067_ Acquired Imp. Hacking Suite. 66076_ System corrupted: Energy discharge (-22). 66078_ Slammed into U-05 Engineer. Map ----- +----------------------------------------------------+ | ??+ / """#?????#""" #????????????? | | ??# #### """#?????#"S !#????????????? | | ??# #??# """#?????#""" #????????????? | | ??# #??# """#?????# "? #????????????? | | ??### ###??# """#?????????? /#????????????? | | ????# #????# """#?????????????#????????????? | | ????+ +????# """#??????????????????????????? | | ????# #????# #??????????????????????????? | | ????# #????##+#######??????????????????????????? | | ????# #?????# #??########??????????????????????? | | ????# #?????# #??# #??????????????????????? | | ????# #?????# ##?# #??????????????????????? | | ????# #?????# ?+ """#??????????????????????? | | ???## #?????# #?# """#??????????????????????? | | ???# ###### #?# """#??????????????????????? | | #### #??? ???????????????????????? | | "" # ######+##########???????????????? | | "" # #???????????????? | | "" #?????#### p #???????????????? | | #?######## """ #???????????????? | | #?# [ # """ u #???????????????? | | ??# # """ #???????????????? | | +##??# = / """ #???????????????? | | #### # """ #???????????????? | | + # """ #+###+##??????????????? | | #### ! # """p @ # % #??????????????? | | #?#+###### p # #??????????????? | | #?# #????# # ! #??????????????? | | #?# #???# # #??????????????? | | #?# #???# # #??????????????? | | #?# #???# # #??????????????? | | ### #???# %! ########??????????????? | | #???# !] #?????????????????????? | | ###?# * #?????????????????????? | | +?????????????????????? | | ###+########### #?????????????????????? | | #?????????????##+#### ##?????????????????????? | | ##???????????????????# ???????????????????????? | | #????????????????????# ???????????????????????? | | #????????????????????? ???????????????????????? | | #?????????????????????# ???????????????????????? | | #??????????????????????????????????????????????? | | #??????????????????????????????????????????????? | | #??????????????????????????????????????????????? | | #??????????????????????????????????????????????? | | #??????????????????????????????????????????????? | | ##?????????????????????????????????????????????? | | #?????????????????????????????????????????????? | | #?????????????????????????????????????????????? | | +?????????????????????????????????????????????? | +----------------------------------------------------+ Best States ------------- Heat Dissipation 95 Coolant Potential 65 Energy Generation 55 Energy Capacity 1700 Matter Stores 470 Matter Capacity 500 Sight Range 20 Robot Scan Range 20 Terrain Scan Range 24 Terrain Scan Density 2010 Power Amplification 30 Additional Mass Support 10 Armor Coverage 1200 Resistance: KI 15 Resistance: TH 30 Resistance: EX 15 Resistance: EM 75 Resistance: I 15 Resistance: S 15 Resistance: P 15 Utility Shielding 66 Weapon Shielding 100 Evasion (%) 60 Targeting Accuracy 8 Target Analysis 12 Core Analysis 8 Recoil Reduction 3 Energy Filtering 30 Particle Charging 30 Offensive Hacking 20 Item Schematics ----------------- Hcp. Storage Unit | -10/Materials | Hacked Arm. Treads | -8/Materials | Scanalyzed Adv. Targeting Computer | -8/Materials | Scanalyzed Adv. Sensor Array | -8/Materials | Scanalyzed System Backup Module | -7/Factory | Hacked Cld. Gravmag System | -7/Factory | Scanalyzed Imp. Utility Shielding | -7/Factory | Scanalyzed Core Analyzer | -7/Factory | Scanalyzed Imp. Salvage Targeting Computer | -7/Factory | Hacked Lgt. Regenerative Plating | -7/Data Miner | Free Combat Drone Bay | -7/Data Miner | Free Exp. Flexi-carbon Leg | -7/Data Miner | Free Exp. Terrain Scanner | -7/Data Miner | Free Cloaking Device | -7/Data Miner | Free Mni. Smartbomb Launcher | -7/Data Miner | Free Lrn. Sensor Array | -6/Factory | Hacked Imp. Linear Gravjet | -4/Factory | Hacked Biometal Heavy Treads | -3/Research | Hacked Enh. Nova Cannon | -3/Research | Hacked Robot Schematics ------------------ S-27 Virus | -7/Data Miner | Free G-50 Soldier | -7/Data Miner | Free L-41 Fighter | -7/Data Miner | Free I-36 Angel | -7/Data Miner | Free G-67 Veteran | -7/Data Miner | Free Fabricated ------------ Hcp. Storage Unit | x1 | -7/Factory System Backup Module | x2 | -7/Factory Mni. Smartbomb Launcher | x1 | -6/Factory Lrn. Sensor Array | x1 | -4/Factory Alien Tech Used ----------------- None Achievements -------------- None Challenges ------------ None Game ------ Seed LegIonicTorch Manual? 0 Play Time 06:23:34 Cumulative 283.4 hours Start 2020.12.21 @ 13:12:59 End 2020.12.22 @ 18:29:25 Sessions 3 Manual Loads 0 Difficulty Rogue Special Mode None Game No. 279 Rogue 279 Adventurer 0 Explorer 0 Win Type - Total 4 Types 4/0/0/0/0/0/0/0/0 Lore% 64 Gallery% 79 Achievement% 61 Wizard Run 0 Options --------- ASCII 0 Keyboard 0 Movement Numpad Keybinds 0 Fullscreen 2 Font 24/Terminus Map View 76x50 Tactical HUD 1 Map Filters NONE Filters NONE Steam 1 RUN: 933863e3-3b7a-4641-bb62-fab2f098f6da